bitfinex-derivatives/quotes_BTCF0:USTF0_20250720
["timestamp","ask_amount","ask_price","bid_price","bid_amount"]
[1753008919782,1.99677607,118020.0,118010.0,4.68512265]
[1753008923188,2.05778245,118020.0,118010.0,4.68512265]
[1753008924475,1.99677607,118020.0,118010.0,4.68512265]
[1753008926691,1.94929607,118020.0,118010.0,4.68512265]
[1753008929882,2.01030245,118020.0,118010.0,4.68512265]
[1753008930390,2.05507245,118020.0,118010.0,4.68512265]
[1753008932094,1.99406607,118020.0,118010.0,4.68512265]
[1753008934394,2.05507576,118020.0,118010.0,4.68512265]
[1753008935597,1.99406607,118020.0,118010.0,4.68512265]
[1753008940897,2.05507554,118020.0,118010.0,4.68512265]
[1753008942098,2.05507554,118020.0,118010.0,4.67899265]
[1753008942698,1.99406607,118020.0,118010.0,4.67899265]
[1753008942896,2.05507554,118020.0,118010.0,4.67899265]
[1753008948907,1.33347554,118020.0,118010.0,4.67899265]
[1753008949107,2.05507554,118020.0,118010.0,4.67899265]
[1753008951009,2.05507554,118020.0,118010.0,4.68399265]
[1753008952508,2.05427554,118020.0,118010.0,4.68399265]
[1753008956614,2.05427554,118020.0,118010.0,4.67899265]
[1753008957414,2.05427554,118020.0,118010.0,4.68383265]
[1753008958116,1.47375554,118020.0,118010.0,4.70085416]
[1753008958316,2.00934554,118020.0,118010.0,4.70085416]
[1753008958517,1.94833607,118020.0,118010.0,4.70085416]
[1753008960220,1.94833607,118020.0,118010.0,4.68383265]
[1753008965423,2.00934554,118020.0,118010.0,4.68383265]
[1753008966425,1.94833607,118020.0,118010.0,4.68383265]
[1753008967832,1.99515607,118020.0,118010.0,4.68383265]
[1753008969824,2.05616554,118020.0,118010.0,4.68383265]
[1753008971728,1.99515607,118020.0,118010.0,4.68383265]
[1753008972028,2.07141477,118020.0,118010.0,4.68383265]
[1753008972924,1.34981477,118020.0,118010.0,4.68383265]
[1753008973222,2.07141477,118020.0,118010.0,4.68383265]
[1753008979935,2.05617281,118020.0,118010.0,4.68383265]
[1753008983844,1.33457281,118020.0,118010.0,4.68383265]
[1753008984044,2.05617281,118020.0,118010.0,4.68383265]
[1753008989953,1.33457281,118020.0,118010.0,4.68383265]
[1753008990148,2.05617281,118020.0,118010.0,4.68383265]
[1753008991952,1.33457281,118020.0,118010.0,4.68383265]
[1753008992151,2.05617281,118020.0,118010.0,4.68383265]
[1753008992354,1.33457281,118020.0,118010.0,4.68383265]
[1753008992654,1.99515607,118020.0,118010.0,4.68383265]
[1753008996354,2.05617281,118020.0,118010.0,4.68383265]
[1753008998354,1.33457281,118020.0,118010.0,4.68383265]
[1753008998556,2.05617281,118020.0,118010.0,4.68383265]
[1753009001555,2.00935281,118020.0,118010.0,4.68383265]
[1753009004956,1.94833607,118020.0,118010.0,4.68383265]
[1753009008962,2.00935281,118020.0,118010.0,4.68383265]
[1753009009364,1.94833607,118020.0,118010.0,4.68383265]
[1753009010768,2.00935281,118020.0,118010.0,4.68383265]
[1753009011065,1.94833607,118020.0,118010.0,4.68383265]
[1753009011666,2.00935281,118020.0,118010.0,4.68383265]
[1753009012168,1.94833607,118020.0,118010.0,4.68383265]
[1753009012768,2.00935281,118020.0,118010.0,4.68383265]
[1753009014068,1.94833607,118020.0,118010.0,4.68383265]
[1753009014470,2.00935281,118020.0,118010.0,4.68383265]
[1753009015266,1.94833607,118020.0,118010.0,4.68383265]
[1753009015662,2.00935281,118020.0,118010.0,4.68383265]
[1753009018272,1.94833607,118020.0,118010.0,4.68383265]
[1753009019979,2.00935281,118020.0,118010.0,4.68383265]
[1753009023880,2.02459477,118020.0,118010.0,4.68383265]
[1753009025881,2.00889053,118020.0,118010.0,4.68383265]
[1753009026272,2.00889053,118020.0,118010.0,4.70075101]
[1753009027275,1.94787361,118020.0,118010.0,4.70075101]
[1753009027583,1.22627361,118020.0,118010.0,4.70075101]
[1753009027784,1.94787361,118020.0,118010.0,4.70075101]
[1753009038193,2.00889053,118020.0,118010.0,4.70075101]
[1753009045706,1.42853053,118020.0,118010.0,4.70075101]
[1753009045906,2.00941053,118020.0,118010.0,4.70075101]
[1753009046706,1.42853053,118020.0,118010.0,4.70075101]
[1753009047107,2.00921053,118020.0,118010.0,4.70075101]
[1753009050209,2.00913053,118020.0,118010.0,4.70075101]
[1753009051605,1.42853053,118020.0,118010.0,4.70075101]
[1753009051808,2.00909053,118020.0,118010.0,4.70075101]
[1753009052207,1.42853053,118020.0,118010.0,4.70075101]
[1753009052410,2.00901053,118020.0,118010.0,4.70075101]
[1753009052806,1.33118361,118020.0,118010.0,4.70075101]
[1753009053016,1.89878361,118020.0,118010.0,4.70075101]
[1753009053811,1.31730361,118020.0,118010.0,4.70075101]
[1753009054014,1.83169337,118020.0,118010.0,4.70075101]
[1753009056414,1.83145337,118020.0,118010.0,4.70075101]
[1753009057014,1.83145337,118020.0,118010.0,4.70946608]
[1753009058818,1.83125337,118020.0,118010.0,4.70946608]
[1753009065317,1.83125337,118020.0,118010.0,4.70075101]
[1753009065623,1.84460337,118020.0,118010.0,4.70075101]
[1753009067322,1.26356337,118020.0,118010.0,4.70075101]
[1753009067622,1.84444337,118020.0,118010.0,4.70075101]
[1753009069521,1.8444495,118020.0,118010.0,4.70075101]
[1753009079032,1.8764295,118020.0,118010.0,4.70075101]
[1753009079936,1.1548295,118020.0,118010.0,4.70075101]
[1753009080134,1.8764295,118020.0,118010.0,4.70075101]
[1753009082740,1.1548295,118020.0,118010.0,4.70075101]
[1753009082941,1.8764295,118020.0,118010.0,4.70075101]
[1753009084441,1.9164895,118020.0,118010.0,4.70075101]
[1753009084942,1.9164895,118020.0,118010.0,4.69591101]
[1753009091646,1.98597545,118020.0,118010.0,4.69591101]
[1753009092248,1.98599093,118020.0,118010.0,4.69591101]
[1753009092448,1.26439093,118020.0,118010.0,4.69591101]
[1753009092644,1.98599093,118020.0,118010.0,4.69591101]
[1753009094450,1.26439093,118020.0,118010.0,4.69591101]
[1753009094752,1.98599093,118020.0,118010.0,4.69591101]
[1753009109860,2.04700785,118020.0,118010.0,4.69591101]
[1753009110060,1.98599093,118020.0,118010.0,4.69591101]
[1753009115467,2.04700785,118020.0,118010.0,4.69591101]
[1753009118772,1.98599093,118020.0,118010.0,4.69591101]
[1753009136784,1.26439093,118020.0,118010.0,4.69591101]
[1753009136984,1.98599093,118020.0,118010.0,4.69591101]
[1753009137374,1.26439093,118020.0,118010.0,4.69591101]
[1753009137578,1.98599093,118020.0,118010.0,4.69591101]
[1753009137778,1.26439093,118020.0,118010.0,4.69591101]
[1753009137981,1.98599093,118020.0,118010.0,4.69591101]
[1753009143091,1.94541093,118020.0,118010.0,4.69794101]
[1753009143389,1.36505093,118020.0,118010.0,4.69794101]
[1753009143587,1.91343093,118020.0,118010.0,4.69794101]
[1753009144089,1.90008093,118020.0,118010.0,4.69794101]
[1753009144689,1.91179093,118020.0,118010.0,4.69794101]
[1753009147093,1.90008093,118020.0,118010.0,4.69794101]
[1753009147990,1.91179093,118020.0,118010.0,4.69794101]
[1753009148196,1.89305445,118020.0,118010.0,4.68102265]
[1753009150397,1.17145445,118020.0,118010.0,4.68102265]
[1753009150695,1.89305445,118020.0,118010.0,4.68102265]
[1753009151796,1.89305183,118020.0,118010.0,4.68102265]
[1753009153698,1.92462183,118020.0,118010.0,4.68102265]
[1753009156402,1.20302183,118020.0,118010.0,4.68102265]
[1753009156701,1.92462183,118020.0,118010.0,4.68102265]
[1753009157602,1.9246216,118020.0,118010.0,4.68102265]
[1753009159802,1.2030216,118020.0,118010.0,4.68102265]
[1753009160005,1.9246216,118020.0,118010.0,4.68102265]
[1753009160804,1.2030216,118020.0,118010.0,4.68102265]
[1753009161104,1.9246216,118020.0,118010.0,4.68102265]
[1753009161906,1.2030216,118020.0,118010.0,4.68102265]
[1753009162109,1.9246216,118020.0,118010.0,4.68102265]
[1753009165111,1.85513565,118020.0,118010.0,4.68102265]
[1753009169416,1.13353565,118020.0,118010.0,4.68102265]
[1753009169615,1.85513565,118020.0,118010.0,4.68102265]
[1753009187325,1.92270191,118020.0,118010.0,4.68102265]
[1753009188237,1.92270191,118020.0,118010.0,4.67899265]
[1753009188431,1.96440191,118020.0,118010.0,4.67899265]
[1753009188636,1.92270191,118020.0,118010.0,4.68058265]
[1753009198548,1.92270191,118020.0,118010.0,4.67899265]
[1753009199946,1.20110191,118020.0,118010.0,4.67899265]
[1753009200145,1.92270191,118020.0,118010.0,4.67899265]
[1753009201143,1.92270191,118020.0,118010.0,4.68014265]
[1753009202843,1.98371883,118020.0,118010.0,4.68014265]
[1753009204546,1.92270191,118020.0,118010.0,4.68014265]
[1753009205451,1.85513565,118020.0,118010.0,4.68014265]
[1753009207949,1.85513565,118020.0,118010.0,4.67899265]
[1753009207950,1.95673257,118020.0,118010.0,4.67899265]
[1753009208348,1.89571565,118020.0,118010.0,4.67899265]
[1753009208643,1.95673257,118020.0,118010.0,4.67899265]
[1753009208844,1.89571565,118020.0,118010.0,4.67899265]
[1753009211950,1.17411565,118020.0,118010.0,4.67899265]
[1753009212251,1.89571565,118020.0,118010.0,4.67899265]
[1753009215254,1.85513565,118020.0,118010.0,4.67899265]
[1753009215460,1.85513565,118020.0,118010.0,4.67987265]
[1753009220661,1.24320565,118020.0,118010.0,4.67987265]
[1753009220861,1.82312565,118020.0,118010.0,4.67987265]
[1753009221961,1.24320565,118020.0,118010.0,4.67987265]
[1753009222262,1.82312565,118020.0,118010.0,4.67987265]
[1753009225164,1.81137565,118020.0,118010.0,4.67987265]
[1753009229070,1.82243565,118020.0,118010.0,4.67987265]
[1753009234963,1.10083565,118020.0,118010.0,4.67987265]
[1753009235165,1.82243565,118020.0,118010.0,4.67987265]
[1753009237169,1.24255565,118020.0,118010.0,4.67987265]
[1753009237366,1.82239565,118020.0,118010.0,4.67987265]
[1753009254687,1.85257565,118020.0,118010.0,4.67987265]
[1753009265398,1.86257565,118020.0,118010.0,4.67987265]
[1753009265596,1.83239565,118020.0,118010.0,4.67987265]
[1753009270298,1.85948565,118020.0,118010.0,4.67987265]
[1753009275902,1.83223565,118020.0,118010.0,4.67987265]
[1753009281005,1.85932565,118020.0,118010.0,4.67987265]
[1753009283416,1.85928565,118020.0,118010.0,4.67987265]
[1753009284607,1.24149565,118020.0,118010.0,4.67987265]
[1753009284811,1.82113565,118020.0,118010.0,4.67987265]
[1753009286815,1.82113565,118020.0,118010.0,5.25951265]
[1753009287217,1.82113565,118020.0,118010.0,5.32766839]
[1753009288014,1.84024538,118020.0,118010.0,4.74802839]
[1753009288215,1.85144538,118020.0,118010.0,4.74802839]
[1753009288414,1.83233565,118020.0,118010.0,4.74802839]
[1753009288913,1.86107565,118020.0,118010.0,4.74802839]
[1753009290218,1.89718565,118020.0,118010.0,4.74714839]
[1753009290409,1.89718565,118020.0,118010.0,4.67899265]
[1753009298421,1.89718565,118020.0,118010.0,4.67799265]
[1753009298625,1.89718565,118020.0,118010.0,4.67899265]
[1753009302119,1.86107565,118020.0,118010.0,4.67899265]
[1753009302718,1.13947565,118020.0,118010.0,4.67899265]
[1753009303023,1.86107565,118020.0,118010.0,4.67899265]
[1753009316435,1.86107565,118020.0,118010.0,4.67799265]
[1753009316636,1.86107565,118020.0,118010.0,4.67999265]
[1753009330541,1.83733565,118020.0,118010.0,4.67999265]
[1753009330732,1.82597565,118020.0,118010.0,4.67999265]
[1753009330936,1.82597565,118020.0,118010.0,4.84937975]
[1753009331440,1.83675565,118020.0,118010.0,4.84937975]
[1753009332348,1.83675565,118020.0,118010.0,4.67999265]
[1753009332644,1.83675565,118020.0,118010.0,5.26455265]
[1753009336448,1.83675565,118020.0,118010.0,5.43393975]
[1753009337041,1.83675565,118020.0,118010.0,5.26455265]
[1753009338549,1.47595565,118020.0,118010.0,5.26455265]
[1753009339347,1.47595565,118020.0,118010.0,5.43393975]
[1753009345651,1.47595565,118020.0,118010.0,5.4512031]
[1753009347353,1.30658275,118020.0,118010.0,5.281816]
[1753009349358,1.29456275,118020.0,118010.0,5.281816]
[1753009351149,0.693154,118020.0,118010.0,5.281816]
[1753009353354,0.693154,118020.0,118010.0,5.34964121]
[1753009357956,0.332354,118020.0,118010.0,5.34964121]
[1753009358255,0.693154,118020.0,118010.0,5.34964121]
[1753009362257,0.703624,118020.0,118010.0,5.34964121]
[1753009362760,0.693154,118020.0,118010.0,5.34964121]
[1753009368864,0.703624,118020.0,118010.0,5.34964121]
[1753009374972,0.812634,118020.0,118010.0,5.34704121]
[1753009375471,0.812634,118020.0,118010.0,4.76508121]
[1753009375670,0.812634,118020.0,118010.0,5.34704121]
[1753009376166,0.812634,118020.0,118010.0,4.76508121]
[1753009376372,0.812634,118020.0,118010.0,5.34720121]
[1753009377372,0.812634,118020.0,118010.0,5.34712121]
[1753009380381,0.812634,118020.0,118010.0,5.279296]
[1753009381582,0.812634,118020.0,118010.0,5.34032169]
[1753009382375,0.83088056,118020.0,118010.0,5.279296]
[1753009386685,0.47008056,118020.0,118010.0,5.279296]
[1753009387087,0.83088056,118020.0,118010.0,5.279296]
[1753009387386,0.79584056,118020.0,118010.0,5.279296]
[1753009387586,0.777594,118020.0,118010.0,5.34032169]
[1753009389988,1.37751976,118020.0,118010.0,5.279296]
[1753009390882,1.35408976,118020.0,118010.0,5.279296]
[1753009395595,1.30326976,118020.0,118010.0,5.279296]
[1753009396593,1.30326976,118020.0,118010.0,5.34765743]
[1753009397788,0.72186976,118020.0,118010.0,5.34765743]
[1753009397997,1.29271976,118020.0,118010.0,5.34765743]
[1753009399389,1.30374976,118020.0,118010.0,5.34765743]
[1753009399793,0.71139976,118020.0,118010.0,5.34765743]
[1753009400093,0.693154,118020.0,118010.0,5.40868312]
[1753009401494,0.704184,118020.0,118010.0,5.40868312]
[1753009406193,0.693154,118020.0,118010.0,5.40868312]
[1753009406398,0.693154,118020.0,118010.0,5.34765743]
[1753009406595,0.553464,118020.0,118010.0,5.40868312]
[1753009406788,0.8326,118040.0,118010.0,5.85652512]
[1753009406994,0.7908494,118040.0,118020.0,0.94204]
[1753009407199,0.2096094,118040.0,118030.0,0.58132]
[1753009407497,0.2096094,118040.0,118030.0,0.59852165]
[1753009407498,0.19136,118040.0,118030.0,0.59852165]
[1753009408092,0.19236,118040.0,118030.0,0.59852165]
[1753009408593,0.19436,118040.0,118030.0,0.59952165]
[1753009409092,0.19436,118040.0,118030.0,0.62070165]
[1753009409695,0.19336,118040.0,118030.0,0.62170165]
[1753009409895,0.404714,118040.0,118030.0,0.62170165]
[1753009410397,0.422364,118040.0,118030.0,0.62170165]
[1753009410595,0.421364,118040.0,118030.0,0.62170165]
[1753009410794,0.444084,118040.0,118030.0,0.62270165]
[1753009411498,0.449064,118040.0,118030.0,0.62170165]
[1753009411698,0.449064,118040.0,118030.0,0.62470165]
[1753009412194,0.448064,118040.0,118030.0,0.62270165]
[1753009412398,0.449064,118040.0,118030.0,0.62770165]
[1753009416302,0.449064,118040.0,118030.0,0.68526165]
[1753009417096,0.449064,118040.0,118030.0,0.68717165]
[1753009426212,0.449064,118040.0,118030.0,1.04797165]
[1753009428910,0.449064,118040.0,118030.0,0.68717165]
[1753009430210,0.46728726,118040.0,118030.0,0.68717165]
[1753009431310,0.46728726,118040.0,118030.0,1.04797165]
[1753009432807,0.46728726,118040.0,118030.0,0.68717165]
[1753009433506,0.46728726,118040.0,118030.0,1.04797165]
[1753009433811,0.46728726,118040.0,118030.0,0.68717165]
[1753009434001,0.46728726,118040.0,118030.0,1.04797165]
[1753009434206,0.46728726,118040.0,118030.0,0.68717165]
[1753009434405,0.46728726,118040.0,118030.0,1.04797165]
[1753009434705,0.46728726,118040.0,118030.0,0.68717165]
[1753009435209,0.46728726,118040.0,118030.0,1.04797165]
[1753009435715,0.46728726,118040.0,118030.0,0.68717165]
[1753009435905,0.46728726,118040.0,118030.0,1.04797165]
[1753009437001,0.46728726,118040.0,118030.0,0.68717165]
[1753009437204,0.46728726,118040.0,118030.0,1.04797165]
[1753009440112,0.449064,118040.0,118030.0,1.10899734]
[1753009443817,0.426344,118040.0,118030.0,1.10899734]
[1753009444017,0.403714,118040.0,118030.0,1.04797165]
[1753009449128,0.392784,118040.0,118030.0,1.10899734]
[1753009450126,0.392784,118040.0,118030.0,1.04797165]
[1753009450528,0.392784,118040.0,118030.0,1.10899734]
[1753009450835,0.404964,118040.0,118030.0,1.10899734]
[1753009451327,0.404964,118040.0,118030.0,1.04797165]
[1753009451529,0.392784,118040.0,118030.0,1.04797165]
[1753009452231,0.404964,118040.0,118030.0,1.04797165]
[1753009454638,0.404964,118040.0,118030.0,1.10899734]
[1753009455031,0.452064,118040.0,118030.0,1.10899734]
[1753009459637,0.452064,118040.0,118030.0,1.40069734]
[1753009461739,0.458074,118040.0,118030.0,1.40069734]
[1753009465246,0.458074,118040.0,118030.0,1.33967165]
[1753009465441,0.458074,118040.0,118030.0,1.40069734]
[1753009469950,0.458074,118040.0,118030.0,1.03989734]
[1753009470148,0.458074,118040.0,118030.0,1.40069734]
[1753009471348,0.458074,118040.0,118030.0,1.40001734]
[1753009473055,0.458074,118040.0,118030.0,1.03921734]
[1753009473353,0.458074,118040.0,118030.0,1.40001734]
[1753009475558,0.458074,118040.0,118030.0,1.33899165]
[1753009480265,0.458074,118040.0,118030.0,1.39997234]
[1753009490175,0.458074,118040.0,118030.0,1.33899165]
[1753009490371,0.458074,118040.0,118030.0,1.41527377]
[1753009491072,0.458074,118040.0,118030.0,1.40000948]
[1753009491370,0.458074,118040.0,118030.0,1.33899165]
[1753009498576,0.458074,118040.0,118030.0,1.41527377]
[1753009500577,0.458074,118040.0,118030.0,0.83272377]
[1753009500778,0.458074,118040.0,118030.0,1.35486876]
[1753009501075,0.458074,118040.0,118030.0,0.77430876]
[1753009501277,0.458074,118040.0,118030.0,1.27944165]
[1753009501973,0.458074,118040.0,118030.0,0.69888165]
[1753009502172,0.458074,118040.0,118030.0,1.27944165]
[1753009503573,0.458074,118040.0,118030.0,1.34045876]
[1753009503774,0.458074,118040.0,118030.0,0.97965876]
[1753009504180,0.458074,118040.0,118030.0,0.68795876]
[1753009505181,0.47700478,118040.0,118030.0,0.68795876]
[1753009508985,0.47700478,118040.0,118030.0,0.69781876]
[1753009509286,0.47700478,118040.0,118030.0,0.71087876]
[1753009510285,0.83780478,118040.0,118030.0,0.71087876]
[1753009510785,0.83780478,118040.0,118030.0,0.04638165]
[1753009512377,0.85604778,118040.0,118030.0,0.02918]
[1753009519691,0.49524778,118040.0,118030.0,0.02918]
[1753009519896,0.85604778,118040.0,118030.0,0.02918]
[1753009523798,0.85604778,118040.0,118030.0,0.02818]
[1753009524398,0.85604778,118040.0,118030.0,0.02718]
[1753009524602,0.85604778,118040.0,118030.0,0.02618]
[1753009525094,0.85602579,118040.0,118030.0,0.02518]
[1753009525500,0.85502579,118040.0,118030.0,0.02218]
[1753009525701,0.85602579,118040.0,118030.0,0.02718]
[1753009526802,0.85602579,118040.0,118030.0,0.02618]
[1753009527102,0.85602579,118040.0,118030.0,0.02818]
[1753009527299,0.85602579,118040.0,118030.0,0.02618]
[1753009527603,0.85602579,118040.0,118030.0,0.02418]
[1753009527798,0.85602579,118040.0,118030.0,0.02518]
[1753009531703,0.85602579,118040.0,118030.0,0.02618]
[1753009531905,0.85602579,118040.0,118030.0,0.02718]
[1753009532808,0.49522579,118040.0,118030.0,0.02718]
[1753009533105,0.85602579,118040.0,118030.0,0.02718]
[1753009545410,0.49522579,118040.0,118030.0,0.02718]
[1753009545705,0.85602579,118040.0,118030.0,0.02718]
[1753009567832,0.49522579,118040.0,118030.0,0.02718]
[1753009568028,0.85602579,118040.0,118030.0,0.02718]
[1753009574932,0.49522579,118040.0,118030.0,0.03371]
[1753009575138,1.07534579,118040.0,118030.0,0.04234]
[1753009575343,0.49522579,118040.0,118030.0,0.40314]
[1753009575637,0.49522579,118040.0,118030.0,0.41266]
[1753009576239,0.49522579,118040.0,118030.0,0.40314]
[1753009577442,0.47700478,118040.0,118030.0,0.40314]
[1753009580146,0.47700478,118040.0,118030.0,0.46415711]
[1753009588352,0.47700478,118040.0,118030.0,0.56415711]
[1753009588656,0.47700478,118040.0,118030.0,0.50314]
[1753009589656,0.47700478,118040.0,118030.0,0.57131711]
[1753009589859,0.47700478,118040.0,118030.0,0.5103]
[1753009590058,0.47700478,118040.0,118030.0,0.57131711]
[1753009596467,0.47700478,118040.0,118030.0,0.5103]
[1753009598872,0.47700478,118040.0,118030.0,0.57131711]
[1753009599567,0.47700478,118040.0,118030.0,0.56415711]
[1753009600167,0.47700478,118040.0,118030.0,0.50314]
[1753009600465,0.47700478,118040.0,118030.0,0.56415711]
[1753009602766,0.458074,118040.0,118030.0,0.56415711]
[1753009603766,0.458074,118040.0,118030.0,0.20335711]
[1753009606669,0.458074,118040.0,118030.0,0.56415711]
[1753009608169,0.458074,118040.0,118030.0,0.20335711]
[1753009610175,0.47633447,118040.0,118030.0,0.14234]
[1753009618281,0.47633447,118040.0,118030.0,0.20335711]
[1753009619780,0.47633447,118040.0,118030.0,0.14234]
[1753009620173,0.458074,118040.0,118030.0,0.14234]
[1753009620381,0.458074,118040.0,118030.0,0.20335711]
[1753009620781,0.458074,118040.0,118030.0,0.18819711]
[1753009623687,0.458074,118040.0,118030.0,0.19136711]
[1753009626586,0.458074,118040.0,118030.0,0.19550711]
[1753009629090,0.458074,118040.0,118030.0,0.55630711]
[1753009630289,0.458074,118040.0,118030.0,0.19550711]
[1753009630484,0.458074,118040.0,118030.0,0.55630711]
[1753009630987,0.47668115,118040.0,118030.0,0.19550711]
[1753009631292,0.47668115,118040.0,118030.0,0.18819711]
[1753009633284,0.47668115,118040.0,118030.0,0.20559299]
[1753009639393,0.47668115,118040.0,118030.0,0.56639299]
[1753009640688,0.47668115,118040.0,118030.0,0.20559299]
[1753009640988,0.47668115,118040.0,118030.0,0.56639299]
[1753009641294,0.47668115,118040.0,118030.0,0.20876299]
[1753009641490,0.47668115,118040.0,118030.0,0.56956299]
[1753009641794,0.47668115,118040.0,118030.0,0.20876299]
[1753009643091,0.47668115,118040.0,118030.0,0.56956299]
[1753009643292,0.47668115,118040.0,118030.0,0.20876299]
[1753009643493,0.47668115,118040.0,118030.0,0.56956299]
[1753009644801,0.47668115,118040.0,118030.0,0.20876299]
[1753009645305,0.47668115,118040.0,118030.0,0.56956299]
[1753009645505,0.47668115,118040.0,118030.0,0.20876299]
[1753009646097,0.458074,118040.0,118030.0,0.20876299]
[1753009646798,0.458074,118040.0,118030.0,0.56956299]
[1753009648003,0.458074,118040.0,118030.0,0.57370299]
[1753009648804,0.458074,118040.0,118030.0,0.21290299]
[1753009649005,0.458074,118040.0,118030.0,0.57370299]
[1753009658716,0.458074,118040.0,118030.0,1.15826299]
[1753009660412,0.47633824,118040.0,118030.0,0.51268588]
[1753009660618,0.47633824,118040.0,118030.0,1.09712588]
[1753009660818,0.47633824,118040.0,118030.0,0.73632588]
[1753009661019,0.47633824,118040.0,118030.0,1.09712588]
[1753009661808,0.47633824,118040.0,118030.0,1.09684588]
[1753009662011,0.47633824,118040.0,118030.0,0.51268588]
[1753009662217,0.47633824,118040.0,118030.0,1.09732588]
[1753009662817,0.47633824,118040.0,118030.0,0.51268588]
[1753009663017,0.47633824,118040.0,118030.0,1.09732588]
[1753009668429,0.47633824,118040.0,118030.0,0.73652588]
[1753009668634,0.47633824,118040.0,118030.0,1.09732588]
[1753009670233,0.458074,118040.0,118030.0,1.15834299]
[1753009675037,0.458074,118040.0,118030.0,1.15420299]
[1753009676539,0.458074,118040.0,118030.0,1.15647299]
[1753009681848,0.47707711,118040.0,118030.0,1.15647299]
[1753009686351,0.47707711,118040.0,118030.0,0.79567299]
[1753009691658,0.47707711,118040.0,118030.0,0.18819711]
[1753009691858,1.43989596,118040.0,118030.0,0.02718]
[1753009705467,0.08374,118030.0,118020.0,0.01696997]
[1753009705672,0.59814,118030.0,118020.0,0.01696997]
[1753009706874,0.60657404,118030.0,118020.0,0.01696997]
[1753009707876,0.60757404,118030.0,118020.0,0.02296997]
[1753009708376,0.59914,118030.0,118020.0,0.02296997]
[1753009708578,0.59914,118030.0,118020.0,0.02196997]
[1753009708778,0.59914,118030.0,118020.0,0.01896997]
[1753009710379,0.82871478,118030.0,118020.0,0.01896997]
[1753009718683,0.82871478,118030.0,118020.0,0.02734469]
[1753009724091,0.82871478,118030.0,118020.0,0.04852469]
[1753009726392,0.82871478,118030.0,118020.0,0.04014997]
[1753009727094,0.82871478,118030.0,118020.0,0.04843432]
[1753009730199,0.82871478,118030.0,118020.0,0.02725432]
[1753009730698,0.82871478,118030.0,118020.0,0.01896997]
[1753009731400,0.82871478,118030.0,118020.0,0.04014997]
[1753009734696,0.46791478,118030.0,118020.0,0.04014997]
[1753009734896,1.18951478,118030.0,118020.0,0.04014997]
[1753009735401,1.18955109,118030.0,118020.0,0.04014997]
[1753009735901,1.18955116,118030.0,118020.0,0.04014997]
[1753009741109,1.18955015,118030.0,118020.0,0.04014997]
[1753009746918,1.18954625,118030.0,118020.0,0.04014997]
[1753009754823,0.46794625,118030.0,118020.0,0.04014997]
[1753009755024,1.18954625,118030.0,118020.0,0.04014997]
[1753009757920,0.46794625,118030.0,118020.0,0.04014997]
[1753009758117,1.18954625,118030.0,118020.0,0.04014997]
[1753009758727,0.46794625,118030.0,118020.0,0.04014997]
[1753009759128,1.18954625,118030.0,118020.0,0.04014997]
[1753009759428,1.18954625,118030.0,118020.0,0.02318]
[1753009770342,0.46794625,118030.0,118020.0,0.02318]
[1753009770543,1.18954625,118030.0,118020.0,0.02318]
[1753009775446,1.18954806,118030.0,118020.0,0.02318]
[1753009782649,1.18954806,118030.0,118020.0,0.04043964]
[1753009785250,1.18954806,118030.0,118020.0,0.02318]
[1753009805470,0.46794806,118030.0,118020.0,0.02318]
[1753009805659,1.18954806,118030.0,118020.0,0.02318]
[1753009811664,0.10787,118020.0,118010.0,4.6011507]
[1753009811869,1.18840406,118020.0,118010.0,4.59245265]
[1753009813067,1.18940406,118020.0,118010.0,4.59645265]
[1753009813561,1.18940406,118020.0,118010.0,4.59845265]
[1753009815373,1.40075806,118020.0,118010.0,4.59845265]
[1753009816472,1.40924199,118020.0,118010.0,4.59845265]
[1753009816971,1.40075806,118020.0,118010.0,4.59845265]
[1753009818578,1.4090925,118020.0,118010.0,4.59845265]
[1753009820279,1.40075806,118020.0,118010.0,4.59845265]
[1753009820979,1.76155806,118020.0,118010.0,4.59845265]
[1753009821578,1.76153381,118020.0,118010.0,4.59845265]
[1753009822778,1.76153381,118020.0,118010.0,3.77193865]
[1753009822779,1.93100581,118020.0,118010.0,3.77193865]
[1753009822982,1.93100581,118020.0,118010.0,3.76893865]
[1753009823376,1.93100581,118020.0,118010.0,3.76793865]
[1753009823580,1.93100581,118020.0,118010.0,3.76893865]
[1753009825079,1.99891368,118020.0,118010.0,3.76893865]
[1753009828583,1.99887897,118020.0,118010.0,3.76893865]
[1753009832693,1.82940697,118020.0,118010.0,3.76893865]
[1753009835188,1.99887897,118020.0,118010.0,3.76893865]
[1753009837593,1.99887897,118020.0,118010.0,3.74065865]
[1753009840003,1.99887897,118020.0,118010.0,3.76183865]
[1753009840306,2.05989589,118020.0,118010.0,3.76183865]
[1753009841105,2.05989589,118020.0,118010.0,3.40103865]
[1753009841410,1.99887897,118020.0,118010.0,3.40103865]
[1753009842707,2.07513767,118020.0,118010.0,3.40103865]
[1753009842906,2.05965632,118020.0,118010.0,3.40103865]
[1753009843309,2.15987266,118020.0,118010.0,3.40103865]
[1753009844509,2.15987266,118020.0,118010.0,3.35524123]
[1753009844912,1.43827266,118020.0,118010.0,3.35524123]
[1753009845210,2.15987266,118020.0,118010.0,3.35524123]
[1753009846602,1.99040066,118020.0,118010.0,3.35524123]
[1753009846809,2.15987266,118020.0,118010.0,3.35524123]
[1753009847811,2.08361396,118020.0,118010.0,3.35524123]
[1753009848111,2.15987266,118020.0,118010.0,3.35524123]
[1753009850412,2.14442554,118020.0,118010.0,3.35524123]
[1753009850712,2.14442554,118020.0,118010.0,3.42403123]
[1753009851913,2.08361396,118020.0,118010.0,3.42403123]
[1753009852916,2.08361396,118020.0,118010.0,3.43592123]
[1753009853617,1.99040066,118020.0,118010.0,3.43592123]
[1753009854318,1.91414196,118020.0,118010.0,3.43592123]
[1753009860617,1.91414196,118020.0,118010.0,3.42403123]
[1753009860920,1.99040066,118020.0,118010.0,3.42403123]
[1753009861120,1.97220556,118020.0,118010.0,3.42403123]
[1753009861323,1.91396435,118020.0,118010.0,3.43598123]
[1753009861621,1.97483826,118020.0,118010.0,3.43598123]
[1753009862123,1.91396435,118020.0,118010.0,3.43598123]
[1753009862323,1.974839,118020.0,118010.0,3.43598123]
[1753009863926,1.253239,118020.0,118010.0,3.43598123]
[1753009864123,1.974839,118020.0,118010.0,3.43598123]
[1753009864623,1.91396435,118020.0,118010.0,3.43598123]
[1753009872934,1.99022305,118020.0,118010.0,3.43598123]
[1753009873335,1.91396435,118020.0,118010.0,3.43598123]
[1753009881140,3.08632435,118020.0,118010.0,3.43598123]
[1753009882043,3.01974435,118020.0,118010.0,3.43598123]
[1753009885339,3.02809435,118020.0,118010.0,3.43598123]
[1753009885543,3.02952435,118020.0,118010.0,3.43598123]
[1753009885742,3.10578305,118020.0,118010.0,3.43598123]
[1753009886142,3.02952435,118020.0,118010.0,3.43598123]
[1753009888643,3.10578305,118020.0,118010.0,3.43598123]
[1753009889142,3.10678305,118020.0,118010.0,3.43598123]
[1753009889446,3.10778305,118020.0,118010.0,3.43598123]